fUST/lending_fUST_20250421
["ID","MTS","AMOUNT","RATE_DAILY","PERIOD"]
[358525926,1745233840676,-151.0,0.00025,7]
[358525928,1745233840686,-151.0,0.00025,7]
[358525930,1745233840696,-160.0,0.00025,7]
[358525932,1745233840705,-160.0,0.00025,7]
[358525934,1745233840715,-151.0,0.00025,7]
[358525936,1745233840724,-151.0,0.00025,7]
[358525938,1745233840734,-895.102134,0.00025,7]
[358525941,1745233840744,-895.102134,0.00025,7]
[358525943,1745233840756,-895.102134,0.00025,7]
[358525945,1745233840767,-895.102134,0.00025,7]
[358525947,1745233840777,-608.85122,0.00025,2]
[358525949,1745233840787,-608.85122,0.00025,2]
[358525951,1745233840796,-608.85122,0.00025,2]
[358525954,1745233840806,-608.85122,0.00025,2]
[358525957,1745233840815,-151.0,0.00025,7]
[358525960,1745233840825,-151.0,0.00025,7]
[358525964,1745233840834,-151.0,0.00025,7]
[358525967,1745233840844,-151.0,0.00025,7]
[358525970,1745233840853,-201.966987,0.00025,2]
[358525974,1745233840863,-151.0,0.00025,7]
[358525978,1745233840873,-159.255274,0.00025,7]
[358525983,1745233840882,-151.0,0.00025,7]
[358525987,1745233840892,-151.0,0.00025,7]
[358525990,1745233840902,-151.0,0.00025,7]
[358525993,1745233840911,-151.0,0.00025,7]
[358525996,1745233840920,-151.0,0.00025,7]
[358525999,1745233840930,-151.0,0.00025,7]
[358526001,1745233840939,-211.448057,0.00025,7]
[358526003,1745233840948,-211.448057,0.00025,7]
[358526006,1745233840958,-211.448057,0.00025,7]
[358526008,1745233840968,-211.448057,0.00025,7]
[358526009,1745233840981,-151.0,0.00025,7]
[358526012,1745233840991,-151.0,0.00025,7]
[358526014,1745233841001,-202.196908,0.00025,7]
[358526016,1745233841011,-202.196908,0.00025,7]
[358526018,1745233841020,-202.196908,0.00025,7]
[358526020,1745233841030,-202.196908,0.00025,7]
[358526042,1745233841228,-151.0,0.00025,7]
[358526044,1745233841238,-217.8541,0.00025,7]
[358526046,1745233841248,-333.0,0.00025,2]
[358526048,1745233841258,-2000.0,0.00025014,30]
[358526050,1745233841267,-2000.0,0.00025014,30]
[358526052,1745233841276,-2000.0,0.00025014,30]
[358526054,1745233841286,-2000.0,0.00025014,30]
[358526056,1745233841295,-2000.0,0.00025014,30]
[358526058,1745233841304,-2000.0,0.00025014,30]
[358526060,1745233841314,-2000.0,0.00025014,30]
[358526063,1745233841323,-2000.0,0.00025014,30]
[358526065,1745233841333,-2000.0,0.00025014,30]
[358526067,1745233841342,-2000.0,0.00025014,30]
[358526069,1745233841351,-160.0,0.00025014,30]
[358526071,1745233841360,-160.0,0.00025014,30]
[358526073,1745233841370,-160.0,0.00025014,30]
[358526075,1745233841379,-312.84021666,0.00025014,30]
[358526076,1745233841388,-500.0,0.00025205,2]
[358526078,1745233841397,-500.0,0.00025205,2]
[358526081,1745233841407,-900.0,0.0002526,2]
[358526083,1745233841416,-4205.39633327,0.00025279,5]
[358526085,1745233841426,-900.0,0.00025469,3]
[358526087,1745233841435,-500.0,0.00025479,2]
[358526089,1745233841444,-500.0,0.00025479,2]
[358526091,1745233841453,-1000.0,0.000255,2]
[358526093,1745233841463,-4330.75880672,0.00025533,2]
[358526095,1745233841472,-420.40766787,0.000256,3]
[358526097,1745233841481,-333.0,0.00025646,2]
[358526099,1745233841490,-500.0,0.00025753,2]
[358526101,1745233841499,-500.0,0.00025753,2]
[358526103,1745233841508,-200.0,0.000258,2]
[358526105,1745233841518,-200.0,0.000258,2]
[358526107,1745233841527,-587.0,0.00025884,2]
[358526109,1745233841536,-19900.0,0.00026,2]
[358526111,1745233841546,-517.28228299,0.00026,2]
[358526113,1745233841556,-7757.0,0.00026,2]
[358526115,1745233841565,-200.0,0.00026,2]
[358526117,1745233841575,-500.0,0.00026027,2]
[358526119,1745233841584,-500.0,0.00026027,2]
[358526121,1745233841594,-500.0,0.00026027,2]
[358526123,1745233841603,-4205.39633327,0.00026072,6]
[358526125,1745233841613,-587.0,0.00026127,2]
[358526127,1745233841622,-300.0,0.000262,2]
[358526129,1745233841631,-184.9069,0.00026301,2]
[358526131,1745233841642,-500.0,0.00026301,2]
[358526133,1745233841652,-500.0,0.00026575,2]
[358526135,1745233841661,-152.0,0.00026641,2]
[358526137,1745233841670,-200.0,0.00026723,7]
[358526139,1745233841679,-200.0,0.00026723,7]
[358526141,1745233841688,-1100.0,0.0002674,120]
[358526143,1745233841697,-1100.0,0.00026767,120]
[358526145,1745233841707,-1100.0,0.00026795,120]
[358526147,1745233841716,-200.0,0.000268,2]
[358526149,1745233841725,-200.0,0.000268,2]
[358526151,1745233841734,-102300.60532907,0.000268,4]
[358526153,1745233841743,-151.0,0.000268,7]
[358526155,1745233841753,-151.0,0.000268,7]
[358526157,1745233841762,-187.656668,0.000268,7]
[358526159,1745233841772,-187.656668,0.000268,7]
[358526161,1745233841781,-191.082593,0.000268,7]
[358526163,1745233841791,-191.082593,0.000268,7]
[358526165,1745233841800,-151.0,0.000268,7]
[358526167,1745233841809,-179.114353,0.000268,7]
[358526169,1745233841818,-151.0,0.000268,7]
[358526171,1745233841828,-151.0,0.000268,7]
[358526173,1745233841837,-895.102134,0.000268,7]
[358526176,1745233841851,-895.102134,0.000268,7]
[358526178,1745233841860,-608.85122,0.000268,2]
[358526180,1745233841869,-608.85122,0.000268,2]
[358526181,1745233841878,-151.0,0.000268,7]
[358526183,1745233841888,-151.0,0.000268,7]
[358526186,1745233841897,-151.0,0.000268,7]
[358526188,1745233841907,-151.0,0.000268,7]
[358526190,1745233841916,-211.448057,0.000268,7]
[358526192,1745233841926,-211.448057,0.000268,7]
[358526194,1745233841935,-151.0,0.000268,7]
[358526196,1745233841945,-202.196908,0.000268,7]
[358526198,1745233841955,-202.196908,0.000268,7]
[358526200,1745233841964,-1100.0,0.00026822,120]
[358526202,1745233841976,-1100.0,0.00026849,120]
[358526204,1745233841986,-500.0,0.00026849,2]
[358526206,1745233841995,-4205.39633327,0.00026866,7]
[358526208,1745233842005,-1200.0,0.00026904,2]
[358526210,1745233842015,-339.34195163,0.00027,2]
[358526212,1745233842024,-3656.46429422,0.00027,2]
[358526214,1745233842033,-200.0,0.00027,2]
[358526216,1745233842042,-312.84021666,0.00027,3]
[358526218,1745233842052,-312.84021666,0.00027,3]
[358526220,1745233842062,-500.0,0.00027123,2]
[358526222,1745233842071,-2000.0,0.00027151,120]
[358526224,1745233842080,-2000.0,0.00027178,120]
[358526226,1745233842090,-2000.0,0.00027205,120]
[358526228,1745233842100,-2000.0,0.00027233,120]
[358526230,1745233842109,-2000.0,0.0002726,120]
[358526232,1745233842118,-2000.0,0.00027288,120]
[358526234,1745233842128,-2000.0,0.00027315,120]
[358526236,1745233842137,-2000.0,0.00027342,120]
[358526239,1745233842150,-2000.0,0.0002737,120]
[358526241,1745233842159,-265.85642887,0.00027373,2]
[358526243,1745233842168,-2000.0,0.00027397,120]
[358526245,1745233842177,-10000.0,0.00027397,2]
[358526247,1745233842186,-10000.0,0.00027397,3]
[358526249,1745233842195,-10000.0,0.00027397,4]
[358526251,1745233842204,-10000.0,0.00027397,5]
[358526253,1745233842214,-10000.0,0.00027397,6]
[358526255,1745233842223,-3583.25230198,0.00027397,7]
[358526257,1745233842233,-1000.0,0.00027397,5]
[358526259,1745233842242,-1000.0,0.00027397,5]
[358526261,1745233842252,-1000.0,0.00027397,5]
[358526263,1745233842261,-1000.0,0.00027397,5]
[358526265,1745233842271,-1000.0,0.00027397,5]
[358526267,1745233842280,-359.91214918,0.00027397,5]
[358526269,1745233842291,-483.0,0.00027397,2]
[358526271,1745233842302,-500.0,0.00027397,2]
[358526274,1745233842313,-926.17468584,0.00027397,5]
[358526276,1745233842323,-500.0,0.00027397,14]
[358526278,1745233842332,-500.0,0.00027397,14]
[358526280,1745233842342,-500.0,0.00027397,14]
[358526282,1745233842352,-500.0,0.00027397,14]
[358526284,1745233842361,-500.0,0.00027397,14]
[358526286,1745233842371,-500.0,0.00027397,14]
[358526288,1745233842381,-500.0,0.00027397,14]
[358526290,1745233842391,-500.0,0.00027397,14]
[358526292,1745233842401,-500.0,0.00027397,14]
[358526294,1745233842410,-500.0,0.00027397,14]
[358526296,1745233842420,-497.42075146,0.00027397,14]
[358526297,1745233842429,-250.0,0.00027397,30]
[358526299,1745233842438,-250.0,0.00027397,30]
[358526301,1745233842447,-151.0,0.00027397,7]
[358526303,1745233842456,-151.0,0.00027397,7]
[358526305,1745233842466,-151.0,0.00027397,7]
[358526307,1745233842475,-151.0,0.00027397,7]
[358526309,1745233842485,-151.0,0.00027397,7]
[358526311,1745233842494,-151.0,0.00027397,7]
[358526313,1745233842503,-151.0,0.00027397,7]
[358526315,1745233842513,-151.0,0.00027397,7]
[358526317,1745233842523,-151.0,0.00027397,7]
[358526319,1745233842532,-151.0,0.00027397,7]
[358526321,1745233842542,-493.747263,0.00027397,120]
[358526323,1745233842552,-1034.329273,0.00027397,2]
[358526325,1745233842562,-729.16666667,0.000274,3]
[358526327,1745233842571,-160.0,0.000274,3]
[358526329,1745233842581,-160.0,0.000274,3]
[358526331,1745233842590,-160.0,0.000274,3]
[358526333,1745233842599,-420.65680271,0.000274,3]
[358526335,1745233842609,-1000.0,0.00027452,5]
[358526338,1745233842618,-1000.0,0.00027452,5]
[358526340,1745233842627,-1000.0,0.00027452,5]
[358526342,1745233842637,-1000.0,0.00027452,5]
[358526344,1745233842646,-1000.0,0.00027452,5]
[358526346,1745233842656,-1000.0,0.00027452,5]
[358526348,1745233842665,-500.0,0.00027499,2]
[358526350,1745233842674,-500.0,0.00027499,2]
[358526352,1745233842685,-500.0,0.00027499,2]
[358526354,1745233842694,-44979.77606382,0.000275,2]
[358526356,1745233842703,-354.60287248,0.000275,2]
[358526358,1745233842712,-151.0,0.000275,7]
[358526360,1745233842722,-151.0,0.000275,7]
[358526362,1745233842731,-187.656668,0.000275,7]
[358526364,1745233842740,-187.656668,0.000275,7]
[358526366,1745233842750,-191.082593,0.000275,7]
[358526368,1745233842759,-191.082593,0.000275,7]
[358526370,1745233842769,-151.0,0.000275,7]
[358526372,1745233842778,-290.506422,0.000275,7]
[358526374,1745233842787,-151.0,0.000275,7]
[358526376,1745233842796,-151.0,0.000275,7]
[358526378,1745233842806,-151.0,0.000275,7]
[358526380,1745233842815,-895.102134,0.000275,7]
[358526382,1745233842824,-895.102134,0.000275,7]
[358526384,1745233842834,-608.85122,0.000275,2]
[358526386,1745233842843,-608.85122,0.000275,2]
[358526388,1745233842855,-151.0,0.000275,7]
[358526390,1745233842864,-151.0,0.000275,7]
[358526392,1745233842874,-151.0,0.000275,7]
[358526394,1745233842884,-258.855882,0.000275,7]
[358526396,1745233842894,-211.448057,0.000275,7]
[358526398,1745233842904,-211.448057,0.000275,7]
[358526400,1745233842915,-151.0,0.000275,7]
[358526402,1745233842925,-202.196908,0.000275,7]
[358526405,1745233842935,-202.196908,0.000275,7]
[358526407,1745233842944,-483.0,0.00027534,2]
[358526409,1745233842954,-4205.39633327,0.00027659,7]
[358526411,1745233842964,-483.0,0.00027671,2]
[358526413,1745233842979,-466.44699112,0.00027671,2]
[358526415,1745233842989,-200.0,0.000278,2]
[358526417,1745233842999,-200.0,0.000278,2]
[358526419,1745233843009,-483.0,0.00027808,2]
[358526421,1745233843019,-1000.0,0.00027829,5]
[358526423,1745233843029,-1000.0,0.00027829,5]
[358526425,1745233843039,-1059.72196481,0.00027899,5]
[358526427,1745233843049,-483.0,0.00027945,2]
[358526429,1745233843059,-2000.0,0.00027945,120]
[358526431,1745233843068,-250.0,0.00027945,5]
[358526433,1745233843077,-250.0,0.00027945,5]
[358526435,1745233843087,-250.0,0.00027945,5]
[358526437,1745233843097,-32414.50618174,0.0002799,2]
[358526439,1745233843107,-200.0,0.00028,2]
[358526441,1745233843117,-483.0,0.00028082,2]
[358526443,1745233843127,-823.0,0.00028129,2]
[358526446,1745233843136,-483.0,0.00028219,2]
[358526448,1745233843145,-483.0,0.00028356,2]
[358526449,1745233843154,-4205.39633327,0.00028452,8]
[358526452,1745233843164,-483.0,0.00028493,2]
[358526454,1745233843174,-2000.0,0.00028493,120]
[358526456,1745233843183,-350.0,0.00028493,5]
[358526458,1745233843192,-350.0,0.00028493,5]
[358526460,1745233843202,-261.30209007,0.00028493,5]
[358526462,1745233843211,-823.0,0.00028528,2]
[358526464,1745233843221,-1500.0,0.00028548,5]
[358526466,1745233843230,-483.0,0.0002863,2]
[358526468,1745233843239,-483.0,0.00028767,2]
[358526469,1745233843249,-1000.0,0.00028767,4]
[358526472,1745233843261,-167.00711413,0.000288,7]
[358526474,1745233843270,-200.0,0.000288,2]
[358526476,1745233843279,-200.0,0.000288,2]
[358526478,1745233843288,-483.0,0.00028904,2]
[358526480,1745233843298,-500.0,0.00028973,5]
[358526482,1745233843308,-500.0,0.00028999,2]
[358526484,1745233843317,-500.13796693,0.00028999,2]
[358526486,1745233843326,-871.87120025,0.00029,2]
[358526487,1745233843336,-420.40766787,0.00029,7]
[358526488,1745233843345,-160.0,0.00029,7]
[358526489,1745233843355,-213518.58383867,0.00029,7]
[358526490,1745233843364,-213518.58383867,0.00029,7]
[358526491,1745233843373,-4822.69527612,0.00029,7]
[358526492,1745233843382,-4822.69527612,0.00029,7]
[358526493,1745233843392,-3123.46629701,0.00029,7]
[358526494,1745233843401,-3123.46629701,0.00029,7]
[358526495,1745233843411,-195.3352718,0.00029,7]
[358526496,1745233843421,-195.3352718,0.00029,7]
[358526497,1745233843430,-16597.39841872,0.00029,7]
[358526498,1745233843440,-36199.88572131,0.00029,7]
[358526499,1745233843449,-36199.88572131,0.00029,7]
[358526501,1745233843458,-16597.39841872,0.00029,7]
[358526503,1745233843467,-24357.49305358,0.00029,7]
[358526505,1745233843476,-24357.49305358,0.00029,7]
[358526507,1745233843487,-1347.80296808,0.00029,7]
[358526509,1745233843496,-1347.80296808,0.00029,7]
[358526511,1745233843505,-482.59483859,0.00029,7]
[358526513,1745233843515,-482.59483859,0.00029,7]
[358526515,1745233843524,-63443.61639408,0.00029,7]
[358526517,1745233843534,-63443.61639408,0.00029,7]
[358526519,1745233843544,-36107.63966114,0.00029,7]
[358526521,1745233843553,-36107.63966114,0.00029,7]
[358526523,1745233843564,-11313.11481904,0.00029,7]
[358526525,1745233843574,-11313.11481904,0.00029,7]
[358526527,1745233843583,-200.0,0.00029,2]
[358526529,1745233843593,-25088.61752474,0.00029,7]
[358526531,1745233843602,-25088.61752474,0.00029,7]
[358526533,1745233843612,-187.91674493,0.00029,7]
[358526535,1745233843621,-187.91674493,0.00029,7]
[358526538,1745233843632,-943.83231972,0.00029,7]
[358526540,1745233843641,-943.83231972,0.00029,7]
[358526542,1745233843651,-623.14417625,0.00029,7]
[358526544,1745233843660,-623.14417625,0.00029,7]
[358526546,1745233843669,-2374.46288031,0.00029,7]
[358526548,1745233843679,-2374.46288031,0.00029,7]
[358526550,1745233843688,-65646.46128463,0.00029,7]
[358526552,1745233843697,-1440.25374215,0.00029,7]
[358526560,1745233843769,-333.0,0.00026641,2]
[358526562,1745233843779,-1587.19872541,0.00029,7]
[358526568,1745233843819,-507.99276201,0.00021917,2]
[358526570,1745233843829,-335.0,0.00027973,2]
[358526572,1745233843838,-4566.89689343,0.00029,7]
[358526574,1745233843851,-616.75923711,0.00029,7]
[358526576,1745233843863,-13317.72692659,0.00029,7]
[358526579,1745233843875,-4186.79886897,0.00029,7]
[358526581,1745233843887,-3346.69067906,0.00029,7]
[358526583,1745233843899,-1503.0,0.00029,7]
[358526585,1745233843910,-2039.95364568,0.00029,7]
[358526587,1745233843922,-758.54794948,0.00029,7]
[358526728,1745233846327,-4132.24302207,0.00029,7]
[358526729,1745233846339,-450.0,0.00029,7]
[358526730,1745233846378,-2822.93903707,0.00029,7]
[358526731,1745233846390,-490.66197027,0.00029,7]
[358526732,1745233960987,4381.92,0.0001501,2]
[358526733,1745233963131,-152.00616674,0.0001501,2]
[358526734,1745233966811,-1504.0,0.0001501,2]
[358526735,1745233967718,-202.91228764,0.0001501,2]
[358526736,1745233976604,10000.0,0.0001501,2]
[358526737,1745233984367,10000.0,0.0001501,2]
[358526738,1745233992642,10000.0,0.0001501,2]
[358526739,1745233998623,10000.0,0.0001501,2]
[358526740,1745234008683,10000.0,0.0001501,2]
[358526741,1745234010094,-202.91228764,0.0001501,2]
[358526742,1745234017024,10000.0,0.0001501,2]
[358526743,1745234017599,-202.91228764,0.0001501,2]
[358526744,1745234026162,10000.0,0.0001501,2]
[358526745,1745234033178,10000.0,0.0001501,2]
[358526746,1745234033540,-2513.0,0.0001501,2]
[358526747,1745234034276,-252.8137383,0.0001501,2]
[358526748,1745234040771,10000.0,0.0001501,2]
[358526749,1745234048303,10000.0,0.00016,10]
[358526750,1745234062487,10000.0,0.0001501,2]
[358526752,1745234080162,10000.0,0.0001501,2]
[358526753,1745234080697,-150.7538046,0.0001501,2]
[358526754,1745234097754,5790.0,0.0001501,2]
[358526755,1745234200515,5000.0,0.0001501,2]
[358526756,1745234218887,5000.0,0.0001501,2]
[358526757,1745234234303,5000.0,0.0001501,2]
[358526758,1745234239980,-202.91228764,0.0001501,2]
[358526759,1745234249637,5000.0,0.0001501,2]
[358526760,1745234250247,-233.8571398,0.0001501,2]
[358526787,1745234881847,-216.11316556,0.00016,2]
[358526790,1745234923038,4784.20542174,0.00018787,120]
[358526791,1745234931719,750.62667173,0.0002,120]
[358526793,1745235023354,-161.72406918,0.0001584,2]
[358526840,1745235032284,-4838.27593082,0.0001584,2]
[358526842,1745235032294,-1003.78022971,0.00016,2]
[358526844,1745235032304,-152.0,0.000178,3]
[358526846,1745235032313,-342.96331774,0.00018,2]
[358526847,1745235032323,-300.0,0.00018899,2]
[358526849,1745235032332,-300.0,0.00018899,2]
[358526851,1745235032342,-356.19452708,0.000189,2]
[358526853,1745235032352,-3794.09769261,0.000189,2]
[358526855,1745235032361,-3794.09769259,0.00019831,2]
[358526857,1745235032371,-420.0,0.00020602,2]
[358526859,1745235032380,-420.0,0.00020702,2]
[358526861,1745235032390,-3794.09769259,0.00020762,2]
[358526864,1745235032399,-250.0,0.00020832,2]
[358526866,1745235032409,-17512.21467375,0.00020832,2]
[358526868,1745235032423,-199.66408617,0.00020932,2]
[358526869,1745235032432,-200.53584417,0.00021,2]
[358526870,1745235032442,-417.8170346,0.00021245,2]
[358526871,1745235032451,-539.8065201,0.00021257,2]
[358526872,1745235032462,-1671.78569011,0.00021693,3]
[358526887,1745235038447,-2122.31200248,0.00021693,3]
[358526889,1745235038459,-805.32897276,0.00021777,2]
[358526891,1745235038468,-193.39457088,0.00021817,2]
[358526894,1745235038478,-160.0,0.00021865,2]
[358526896,1745235038488,-420.65680271,0.00021865,2]
[358526898,1745235038498,-160.0,0.00021865,2]
[358526900,1745235038508,-160.0,0.00021868,2]
[358526902,1745235038518,-574.01320746,0.00021917,2]
[358526904,1745235038527,-500.0,0.00021917,2]
[358526906,1745235038536,-500.0,0.00021917,2]
[358526908,1745235038545,-500.0,0.00021917,2]
[358526910,1745235038555,-500.0,0.00021917,2]
[358526912,1745235038563,-500.0,0.00021917,2]
[358526914,1745235038572,-500.0,0.00021917,2]
[358526916,1745235038582,-500.0,0.00021917,2]
[358526918,1745235038591,-500.0,0.00021917,2]
[358526920,1745235038600,-130.10411702,0.00021917,2]
[358526922,1745235038613,-369.89588298,0.00021917,2]
[358526924,1745235038622,-234.98561964,0.00021917,2]
[358526926,1745235038631,-500.0,0.00022191,2]
[358526928,1745235038641,-500.0,0.00022191,2]
[358526930,1745235038650,-500.0,0.00022191,2]
[358526932,1745235038659,-500.0,0.00022191,2]
[358526934,1745235038668,-24900.0,0.00022307,2]
[358526936,1745235038677,-500.0,0.00022373,2]
[358526938,1745235038687,-500.0,0.00022373,2]
[358526940,1745235038696,-500.0,0.00022373,2]
[358526942,1745235038706,-500.0,0.00022373,2]
[358526944,1745235038716,-500.0,0.00022373,2]
[358526946,1745235038725,-500.0,0.00022373,2]
[358526948,1745235038735,-500.0,0.00022373,2]
[358526950,1745235038744,-300.0,0.00022373,2]
[358526952,1745235038753,-587.0,0.00022459,2]
[358526954,1745235038763,-500.0,0.00022465,2]
[358526956,1745235038772,-475.22,0.00022465,2]
[358526958,1745235038782,-500.0,0.00022465,2]
[358526960,1745235038791,-500.0,0.00022465,2]
[358526962,1745235038801,-500.0,0.00022528,2]
[358526964,1745235038810,-500.0,0.00022528,2]
[358526967,1745235038819,-500.0,0.00022622,2]
[358526969,1745235038829,-500.0,0.00022622,2]
[358526971,1745235038838,-500.0,0.00022622,2]
[358526973,1745235038848,-3794.09769259,0.00022624,4]
[358526975,1745235038857,-587.0,0.00022677,2]
[358526976,1745235038867,-500.0,0.00022739,2]
[358526977,1745235038876,-500.0,0.00022739,2]
[358526978,1745235038886,-500.0,0.00022739,2]
[358526979,1745235038895,-500.0,0.00023013,2]
[358526980,1745235038904,-500.0,0.00023013,2]
[358526981,1745235038913,-500.0,0.00023013,2]
[358526982,1745235038923,-500.0,0.00023287,2]
[358526983,1745235038932,-370.01,0.00023287,2]
[358526984,1745235038941,-184.9069,0.00023287,2]
[358526985,1745235038950,-386.02334222,0.00023554,2]
[358526986,1745235038959,-500.0,0.00023554,2]
[358526987,1745235038968,-500.0,0.00023554,2]
[358526988,1745235038977,-500.0,0.00023554,2]
[358526989,1745235038986,-503.65917983,0.00023554,2]
[358526991,1745235038995,-500.0,0.00023554,2]
[358526993,1745235039005,-500.0,0.00023554,2]
[358526995,1745235039014,-500.0,0.00023554,2]
[358526998,1745235039029,-500.0,0.00023554,2]
[358527000,1745235039042,-500.0,0.00023554,2]
[358527003,1745235039055,-500.0,0.00023554,2]
[358527005,1745235039067,-500.0,0.00023554,2]
[358527007,1745235039079,-500.0,0.00023554,2]
[358527010,1745235039090,-500.0,0.00023554,2]
[358527012,1745235039101,-500.0,0.00023554,2]
[358527014,1745235039114,-500.0,0.00023554,2]
[358527016,1745235039126,-500.0,0.00023554,2]
[358527018,1745235039136,-500.0,0.00023554,2]
[358527020,1745235039147,-500.0,0.00023554,2]
[358527023,1745235039158,-500.0,0.00023554,2]
[358527025,1745235039168,-500.0,0.00023554,2]
[358527027,1745235039180,-500.0,0.00023554,2]
[358527029,1745235039191,-500.0,0.00023554,2]
[358527031,1745235039202,-500.0,0.00023554,2]
[358527033,1745235039213,-500.0,0.00023554,2]
[358527035,1745235039224,-500.0,0.00023554,2]
[358527038,1745235039236,-500.0,0.00023554,2]
[358527040,1745235039248,-500.0,0.00023554,2]
[358527042,1745235039260,-500.0,0.00023554,2]
[358527044,1745235039273,-500.0,0.00023554,2]
[358527046,1745235039285,-164.00690683,0.00023554,2]
[358527048,1745235039297,-3794.09769259,0.00023555,4]
[358527051,1745235039309,-500.0,0.00023561,2]
[358527053,1745235039319,-503.55561287,0.00023573,2]
[358527055,1745235039330,-200.0,0.000236,2]
[358527057,1745235039340,-405.99161107,0.00023828,2]
[358527059,1745235039351,-503.67885041,0.00023828,2]
[358527061,1745235039363,-500.0,0.00023835,2]
[358527064,1745235039378,-356.19452708,0.000239,2]
[358527066,1745235039390,-600.0,0.00024016,2]
[358527068,1745235039402,-500.0,0.00024109,2]
[358527070,1745235039413,-162.32983012,0.00024283,2]
[358527073,1745235039428,-466.44699112,0.00024383,2]
[358527075,1745235039439,-823.0,0.00024482,2]
[358527077,1745235039448,-3794.09769259,0.00024486,5]
[358527079,1745235039460,-2822.93903707,0.000246,2]
[358527081,1745235039470,-200.0,0.00024658,15]
[358527083,1745235039482,-153.10388834,0.000247,7]
[358527085,1745235039493,-200.0,0.000248,2]
[358527088,1745235039504,-2519.67701555,0.000248,2]
[358527090,1745235039515,-823.0,0.00024841,2]
[358527092,1745235039525,-500.0,0.00024873,2]
[358527094,1745235039535,-620.91254679,0.00024873,2]
[358527096,1745235039546,-500.0,0.00024873,2]
[358527098,1745235039558,-500.0,0.00024873,2]
[358527101,1745235039569,-225.06425995,0.00024873,2]
[358527103,1745235039580,-500.0,0.00024873,2]
[358527105,1745235039590,-500.0,0.00024873,2]
[358527107,1745235039600,-500.0,0.00024873,2]
[358527109,1745235039611,-500.0,0.00024873,2]
[358527112,1745235039624,-500.0,0.00024899,2]
[358527114,1745235039634,-367.29556617,0.00024899,2]
[358527116,1745235039643,-500.0,0.00024899,2]
[358527118,1745235039654,-187.51769375,0.00024899,2]
[358527120,1745235039664,-293880.495895,0.000249,2]
[358527122,1745235039674,-1038.05403896,0.000249,2]
[358527124,1745235039685,-998.98,0.00025,2]
[358527126,1745235039696,-33152.00992592,0.00025,7]
[358527128,1745235039706,-331.07003009,0.00025,2]
[358527130,1745235039716,-201.966987,0.00025,2]
[358527133,1745235039728,-839.72553703,0.00025,2]
[358527135,1745235039738,-99800.0,0.00025,2]
[358527137,1745235039749,-172.0,0.00025,2]
[358527140,1745235039759,-600.4535579,0.00025,2]
[358527143,1745235039771,-420.65680271,0.00025,7]
[358527145,1745235039782,-805.32897269,0.00025093,2]
[358527147,1745235039793,-162.32983011,0.00025105,2]
[358527149,1745235039803,-3794.09769259,0.00025417,6]
[358527152,1745235039814,-900.0,0.00025469,3]
[358527154,1745235039824,-1000.0,0.000255,2]
[358527156,1745235039835,-500.0,0.00025573,2]
[358527158,1745235039847,-298.35976474,0.00025573,2]
[358527161,1745235039860,-500.0,0.00025573,2]
[358527163,1745235039872,-500.0,0.00025573,2]